fUST/lending_fUST_20240131
["ID","MTS","AMOUNT","RATE_DAILY","PERIOD"]
[313059342,1706701839110,-500.0,0.00021814,2]
[313059344,1706701839119,-500.0,0.00021814,2]
[313059346,1706701839128,-500.0,0.00021814,2]
[313059348,1706701839137,-500.0,0.00021814,2]
[313059350,1706701839146,-500.0,0.00021814,2]
[313059352,1706701839155,-500.0,0.00021814,2]
[313059354,1706701839164,-500.0,0.00021814,2]
[313059356,1706701839173,-500.0,0.00021814,2]
[313059357,1706701839182,-500.0,0.00021814,2]
[313059359,1706701839191,-500.0,0.00021814,2]
[313059361,1706701839202,-500.0,0.00021814,2]
[313059363,1706701839212,-500.0,0.00021814,2]
[313059365,1706701839221,-500.0,0.00021814,2]
[313059366,1706701839231,-212.0682834,0.00021814,2]
[313059368,1706701839241,-500.0,0.00021814,2]
[313059370,1706701839250,-500.0,0.00021814,2]
[313059372,1706701839259,-500.0,0.00021814,2]
[313059373,1706701839268,-500.0,0.00021814,2]
[313059374,1706701839278,-620.27498651,0.00021814,2]
[313059375,1706701839287,-500.0,0.00021814,2]
[313059376,1706701839297,-500.0,0.00021814,2]
[313059377,1706701839307,-500.0,0.00021814,2]
[313059378,1706701839317,-500.0,0.00021814,2]
[313059379,1706701839326,-500.0,0.00021814,2]
[313059380,1706701839336,-500.0,0.00021814,2]
[313059381,1706701839345,-20925.73501298,0.00021815,2]
[313059382,1706701839354,-156.69992293,0.00021815,2]
[313059383,1706701839363,-169.27011495,0.00021815,2]
[313059384,1706701839372,-163.36525475,0.00021815,2]
[313059385,1706701839382,-180.06935571,0.00021815,2]
[313059386,1706701839391,-276000.0,0.00021817,2]
[313059387,1706701839400,-179.10169076,0.00021914,2]
[313059388,1706701839409,-328.54653112,0.00021914,2]
[313059389,1706701839418,-155.35590413,0.00021914,2]
[313059390,1706701839428,-221.26638139,0.00021914,2]
[313059391,1706701839437,-155.7226955,0.00021914,2]
[313059392,1706701839446,-640.83333091,0.00021914,2]
[313059393,1706701839456,-156.13081128,0.00021914,2]
[313059394,1706701839465,-166.35364662,0.00021914,2]
[313059395,1706701839474,-155.55930946,0.00021914,2]
[313059396,1706701839483,-155.84032299,0.00021914,2]
[313059397,1706701839493,-500.0,0.00021917,2]
[313059398,1706701839501,-826.13,0.00021917,2]
[313059399,1706701839511,-500.0,0.00021917,2]
[313059400,1706701839520,-500.0,0.00021917,2]
[313059401,1706701839529,-513.4267534,0.00021917,2]
[313059402,1706701839538,-500.0,0.00021917,2]
[313059403,1706701839548,-323.44904625,0.00021917,2]
[313059404,1706701839560,-500.0,0.00021917,2]
[313059405,1706701839569,-500.0,0.00021917,2]
[313059406,1706701839578,-1352.35,0.00021917,2]
[313059407,1706701839587,-529.43423216,0.00021917,2]
[313059408,1706701839596,-431.29414339,0.00021917,2]
[313059409,1706701839606,-532.49556175,0.00021917,2]
[313059410,1706701839615,-500.0,0.00021917,2]
[313059411,1706701839624,-277.16826861,0.00021917,2]
[313059412,1706701839634,-500.0,0.00021917,2]
[313059413,1706701839645,-864.97,0.00021917,2]
[313059414,1706701839654,-500.0,0.00021917,2]
[313059415,1706701839663,-193.41239296,0.00021917,2]
[313059416,1706701839672,-500.0,0.00021917,2]
[313059417,1706701839682,-500.0,0.00021917,2]
[313059418,1706701839691,-500.0,0.00021917,2]
[313059419,1706701839700,-500.0,0.00021917,2]
[313059420,1706701839709,-500.0,0.00021917,2]
[313059421,1706701839718,-151.0,0.00021917,2]
[313059422,1706701839726,-500.0,0.00021917,2]
[313059423,1706701839735,-500.0,0.00021917,2]
[313059424,1706701839744,-1069.04,0.00021917,2]
[313059425,1706701839753,-500.0,0.00021917,2]
[313059426,1706701839762,-1066.5,0.00021917,2]
[313059427,1706701839771,-500.0,0.00021917,2]
[313059428,1706701839780,-500.0,0.00021917,2]
[313059429,1706701839790,-500.0,0.00021917,2]
[313059430,1706701839799,-500.0,0.00021917,2]
[313059431,1706701839808,-500.0,0.00021917,2]
[313059432,1706701839818,-500.0,0.00021917,2]
[313059433,1706701839827,-500.0,0.00021917,2]
[313059434,1706701839841,-500.0,0.00021917,2]
[313059435,1706701839856,-500.0,0.00021917,2]
[313059436,1706701839870,-500.0,0.00021917,2]
[313059437,1706701839883,-4184.16,0.00021917,2]
[313059438,1706701839894,-500.0,0.00021917,2]
[313059439,1706701839907,-500.0,0.00021917,2]
[313059440,1706701839919,-1982.57,0.00021917,2]
[313059441,1706701839932,-508.78,0.00021917,2]
[313059442,1706701839944,-541.26,0.00021917,2]
[313059443,1706701839958,-602.18874277,0.00021917,2]
[313059444,1706701839970,-1488.98,0.00021917,2]
[313059445,1706701839982,-1052.12,0.00021917,2]
[313059446,1706701839992,-500.0,0.00021917,2]
[313059447,1706701840004,-500.0,0.00021917,2]
[313059448,1706701840016,-500.0,0.00021917,2]
[313059449,1706701840029,-500.0,0.00021917,2]
[313059450,1706701840041,-500.0,0.00021917,2]
[313059451,1706701840054,-228.99,0.00021917,2]
[313059452,1706701840067,-228.99,0.00021917,2]
[313059453,1706701840078,-228.99,0.00021917,2]
[313059455,1706701840089,-228.99,0.00021917,2]
[313059458,1706701840103,-500.0,0.00021917,2]
[313059459,1706701840115,-467.36530748,0.00021917,2]
[313059460,1706701840127,-500.0,0.00021917,2]
[313059461,1706701840139,-500.0,0.00021917,2]
[313059462,1706701840150,-500.0,0.00021917,2]
[313059463,1706701840163,-500.0,0.00021917,2]
[313059464,1706701840175,-576.070653,0.00021917,2]
[313059465,1706701840188,-576.070653,0.00021917,2]
[313059466,1706701840201,-576.070653,0.00021917,2]
[313059467,1706701840213,-576.070653,0.00021917,2]
[313059468,1706701840227,-299.61305746,0.00021917,2]
[313059469,1706701840240,-500.0,0.00021917,2]
[313059470,1706701840251,-500.0,0.00021917,2]
[313059471,1706701840262,-500.0,0.00021917,2]
[313059472,1706701840272,-500.0,0.00021917,2]
[313059473,1706701840284,-500.0,0.00021917,2]
[313059474,1706701840297,-500.0,0.00021917,2]
[313059475,1706701840308,-500.0,0.00021917,2]
[313059476,1706701840320,-500.0,0.00021917,2]
[313059477,1706701840333,-500.0,0.00021917,2]
[313059478,1706701840344,-500.0,0.00021917,2]
[313059479,1706701840354,-500.0,0.00021917,2]
[313059480,1706701840365,-500.0,0.00021917,2]
[313059481,1706701840376,-500.0,0.00021917,2]
[313059482,1706701840387,-2298.17,0.00021917,2]
[313059483,1706701840398,-500.0,0.00021917,2]
[313059484,1706701840409,-858.43,0.00021917,2]
[313059485,1706701840421,-500.0,0.00021917,2]
[313059486,1706701840433,-500.0,0.00021917,2]
[313059487,1706701840444,-500.0,0.00021917,2]
[313059488,1706701840455,-500.0,0.00021917,2]
[313059489,1706701840466,-500.0,0.00021917,2]
[313059490,1706701840478,-626.6242037,0.00021917,2]
[313059491,1706701840489,-764.13,0.00021917,2]
[313059492,1706701840501,-500.0,0.00021917,2]
[313059493,1706701840512,-151.0,0.00021917,2]
[313059494,1706701840523,-151.0,0.00021917,2]
[313059495,1706701840535,-151.0,0.00021917,2]
[313059496,1706701840547,-500.0,0.00021917,2]
[313059497,1706701840559,-151.0,0.00021917,2]
[313059498,1706701840575,-151.0,0.00021917,2]
[313059499,1706701840586,-151.0,0.00021917,2]
[313059500,1706701840597,-500.0,0.00021917,2]
[313059501,1706701840609,-500.0,0.00021917,2]
[313059502,1706701840620,-500.0,0.00021917,2]
[313059503,1706701840631,-2716.59,0.00021917,2]
[313059504,1706701840642,-500.0,0.00021917,2]
[313059505,1706701840654,-500.0,0.00021917,2]
[313059506,1706701840665,-1526.33,0.00021917,2]
[313059507,1706701840676,-500.0,0.00021917,2]
[313059508,1706701840687,-500.0,0.00021917,2]
[313059509,1706701840698,-500.0,0.00021917,2]
[313059510,1706701840710,-931.05,0.00021917,2]
[313059511,1706701840721,-4527.29,0.00021917,2]
[313059512,1706701840733,-500.0,0.00021917,2]
[313059513,1706701840744,-500.0,0.00021917,2]
[313059514,1706701840755,-3710.53,0.00021917,2]
[313059515,1706701840766,-2531.75,0.00021917,2]
[313059516,1706701840778,-500.0,0.00021917,2]
[313059517,1706701840789,-500.0,0.00021917,2]
[313059519,1706701840800,-500.0,0.00021917,2]
[313059520,1706701840811,-500.0,0.00021917,2]
[313059521,1706701840823,-500.0,0.00021917,2]
[313059522,1706701840835,-500.0,0.00021917,2]
[313059523,1706701840846,-719.85,0.00021917,2]
[313059526,1706701840952,-716.77,0.00021917,2]
[313059527,1706701840985,-500.0,0.00021917,2]
[313059528,1706701840995,-500.0,0.00021917,2]
[313059529,1706701841005,-500.0,0.00021917,2]
[313059530,1706701841015,-253.12630174,0.00021917,2]
[313059531,1706701841025,-774.63,0.00021917,2]
[313059532,1706701841034,-500.0,0.00021917,2]
[313059533,1706701841044,-500.0,0.00021917,2]
[313059534,1706701841052,-2763.43,0.00021917,2]
[313059535,1706701841061,-6313.77,0.00021917,2]
[313059536,1706701841070,-500.0,0.00021917,2]
[313059537,1706701841080,-500.0,0.00021917,2]
[313059538,1706701841089,-1064.33,0.00021917,2]
[313059539,1706701841098,-500.0,0.00021917,2]
[313059540,1706701841107,-500.0,0.00021917,2]
[313059541,1706701841116,-500.0,0.00021917,2]
[313059542,1706701841126,-500.0,0.00021917,2]
[313059543,1706701841135,-27622.09,0.00021917,2]
[313059544,1706701841144,-500.0,0.00021917,2]
[313059545,1706701841153,-500.0,0.00021917,2]
[313059546,1706701841163,-500.0,0.00021917,2]
[313059547,1706701841171,-500.0,0.00021917,2]
[313059548,1706701841181,-500.0,0.00021917,2]
[313059549,1706701841190,-500.0,0.00021917,2]
[313059550,1706701841199,-500.0,0.00021917,2]
[313059551,1706701841209,-500.32,0.00021917,2]
[313059552,1706701841218,-1296.02,0.00021917,2]
[313059553,1706701841227,-12666.66,0.00021917,2]
[313059554,1706701841236,-153.915183,0.00021917,2]
[313059555,1706701841245,-500.0,0.00021917,2]
[313059556,1706701841254,-153.915183,0.00021917,2]
[313059557,1706701841263,-153.915183,0.00021917,2]
[313059558,1706701841272,-153.915183,0.00021917,2]
[313059559,1706701841281,-153.915183,0.00021917,2]
[313059560,1706701841291,-153.915183,0.00021917,2]
[313059561,1706701841300,-1196.3,0.00021917,2]
[313059562,1706701841310,-1201.9,0.00021917,2]
[313059563,1706701841320,-6264.737161,0.00021917,2]
[313059564,1706701841329,-6264.737161,0.00021917,2]
[313059565,1706701841338,-6264.737161,0.00021917,2]
[313059566,1706701841347,-6264.737161,0.00021917,2]
[313059567,1706701841356,-6264.737161,0.00021917,2]
[313059568,1706701841365,-6264.737161,0.00021917,2]
[313059569,1706701841374,-226.34165706,0.00021917,2]
[313059570,1706701841384,-500.0,0.00021917,2]
[313059571,1706701841393,-1996.15,0.00021917,2]
[313059572,1706701841402,-6221.19,0.00021917,2]
[313059573,1706701841412,-2307.34,0.00021917,2]
[313059574,1706701841421,-2280.13,0.00021917,2]
[313059575,1706701841430,-18013.39,0.00021917,2]
[313059576,1706701841439,-500.0,0.00021917,2]
[313059577,1706701841449,-5063.19416754,0.00021917,2]
[313059578,1706701841551,-33.97583246,0.00021917,2]
[313059579,1706701841563,-14233.68,0.00021917,2]
[313059580,1706701841574,-500.0,0.00021917,2]
[313059581,1706701841583,-500.0,0.00021917,2]
[313059582,1706701841592,-500.0,0.00021917,2]
[313059583,1706701841603,-4602.12,0.00021917,2]
[313059584,1706701841612,-500.0,0.00021917,2]
[313059585,1706701841621,-500.0,0.00021917,2]
[313059586,1706701841631,-6126.42,0.00021917,2]
[313059587,1706701841640,-500.0,0.00021917,2]
[313059589,1706701841650,-1842.47,0.00021917,2]
[313059591,1706701841660,-500.0,0.00021917,2]
[313059593,1706701841669,-3047.72,0.00021917,2]
[313059595,1706701841678,-606.32,0.00021917,2]
[313059597,1706701841688,-500.0,0.00021917,2]
[313059599,1706701841697,-500.0,0.00021917,2]
[313059602,1706701841707,-2505.72,0.00021917,2]
[313059604,1706701841716,-500.0,0.00021917,2]
[313059605,1706701841725,-500.0,0.00021917,2]
[313059607,1706701841736,-670.57,0.00021917,2]
[313059610,1706701841745,-500.0,0.00021917,2]
[313059611,1706701841755,-2739.47,0.00021917,2]
[313059613,1706701841764,-500.0,0.00021917,2]
[313059615,1706701841773,-500.0,0.00021917,2]
[313059617,1706701841783,-2161.02,0.00021917,2]
[313059620,1706701841794,-251.16095486,0.00021917,2]
[313059622,1706701841803,-500.0,0.00021917,2]
[313059624,1706701841813,-500.0,0.00021917,2]
[313059626,1706701841822,-2210.8,0.00021917,2]
[313059628,1706701841831,-219.536247,0.00021917,2]
[313059630,1706701841841,-166.666666,0.00021918,2]
[313059632,1706701841850,-2037.54507979,0.00022,2]
[313059634,1706701841859,-164.68514101,0.00022,2]
[313059636,1706701841868,-426.66199522,0.00022,2]
[313059638,1706701841878,-3975.13505251,0.00022,2]
[313059640,1706701841887,-297.11254882,0.00022,2]
[313059642,1706701841896,-153.9751229,0.00022,2]
[313059644,1706701841905,-151.0,0.00022,2]
[313059646,1706701841914,-1247.4787946,0.00022189,2]
[313059648,1706701841923,-173.54087516,0.00022189,2]
[313059650,1706701841932,-522.70965873,0.00022189,2]
[313059652,1706701841942,-155.2275081,0.00022189,2]
[313059654,1706701841952,-384.64697665,0.00022189,2]
[313059656,1706701841961,-2105.3133158,0.00022189,2]
[313059658,1706701841971,-155.49319903,0.00022189,2]
[313059660,1706701841980,-500.0,0.00022191,2]
[313059662,1706701841990,-154.9690062,0.00022191,2]
[313059664,1706701841999,-1828.98396681,0.00022191,2]
[313059666,1706701842008,-1075.53349204,0.00022191,2]
[313059668,1706701842018,-826.13,0.00022191,2]
[313059670,1706701842027,-500.0,0.00022191,2]
[313059672,1706701842036,-500.0,0.00022191,2]
[313059673,1706701842048,-500.0,0.00022191,2]
[313059676,1706701842058,-500.0,0.00022191,2]
[313059677,1706701842066,-500.0,0.00022191,2]
[313059679,1706701842075,-1352.35,0.00022191,2]
[313059681,1706701842084,-500.0,0.00022191,2]
[313059683,1706701842093,-500.0,0.00022191,2]
[313059685,1706701842102,-864.97,0.00022191,2]
[313059687,1706701842113,-435.09847913,0.00022191,2]
[313059689,1706701842123,-500.0,0.00022191,2]
[313059692,1706701842132,-500.0,0.00022191,2]
[313059693,1706701842141,-500.0,0.00022191,2]
[313059696,1706701842151,-500.0,0.00022191,2]
[313059697,1706701842160,-500.0,0.00022191,2]
[313059699,1706701842169,-151.0,0.00022191,2]
[313059701,1706701842179,-151.0,0.00022191,2]
[313059704,1706701842189,-151.0,0.00022191,2]
[313059706,1706701842198,-151.0,0.00022191,2]
[313059708,1706701842207,-500.0,0.00022191,2]
[313059710,1706701842217,-552.27063157,0.00022191,2]
[313059711,1706701842226,-1069.04,0.00022191,2]
[313059713,1706701842236,-171.95866094,0.00022191,2]
[313059716,1706701842245,-1066.5,0.00022191,2]
[313059718,1706701842257,-562.38481904,0.00022191,2]
[313059720,1706701842267,-308.2147229,0.00022191,2]
[313059722,1706701842276,-500.0,0.00022191,2]
[313059723,1706701842284,-500.0,0.00022191,2]
[313059724,1706701842295,-453.61630463,0.00022191,2]
[313059725,1706701842304,-500.0,0.00022191,2]
[313059726,1706701842313,-516.90484755,0.00022191,2]
[313059727,1706701842322,-4184.16,0.00022191,2]
[313059728,1706701842331,-500.0,0.00022191,2]
[313059729,1706701842341,-333.97015587,0.00022191,2]
[313059730,1706701842351,-1982.57,0.00022191,2]
[313059731,1706701842361,-508.78,0.00022191,2]
[313059732,1706701842370,-541.26,0.00022191,2]
[313059733,1706701842381,-1488.98,0.00022191,2]
[313059734,1706701842390,-1052.12,0.00022191,2]
[313059735,1706701842400,-500.0,0.00022191,2]
[313059736,1706701842410,-500.0,0.00022191,2]
[313059737,1706701842420,-500.0,0.00022191,2]
[313059738,1706701842430,-500.0,0.00022191,2]
[313059739,1706701842440,-228.99,0.00022191,2]
[313059740,1706701842450,-228.99,0.00022191,2]
[313059741,1706701842459,-228.99,0.00022191,2]
[313059742,1706701842469,-228.99,0.00022191,2]
[313059744,1706701842478,-228.99,0.00022191,2]
[313059746,1706701842488,-228.99,0.00022191,2]
[313059748,1706701842497,-228.99,0.00022191,2]
[313059750,1706701842506,-228.99,0.00022191,2]
[313059752,1706701842516,-500.0,0.00022191,2]
[313059754,1706701842525,-583.75870075,0.00022191,2]
[313059756,1706701842535,-500.0,0.00022191,2]
[313059758,1706701842546,-500.0,0.00022191,2]
[313059760,1706701842556,-500.0,0.00022191,2]
[313059762,1706701842570,-576.070653,0.00022191,2]
[313059764,1706701842579,-576.070653,0.00022191,2]
[313059766,1706701842589,-576.070653,0.00022191,2]
[313059768,1706701842598,-576.070653,0.00022191,2]
[313059770,1706701842609,-576.070653,0.00022191,2]
[313059772,1706701842618,-576.070653,0.00022191,2]
[313059774,1706701842627,-576.070653,0.00022191,2]
[313059776,1706701842636,-576.070653,0.00022191,2]
[313059778,1706701842647,-500.0,0.00022191,2]
[313059780,1706701842656,-500.0,0.00022191,2]
[313059782,1706701842666,-500.0,0.00022191,2]
[313059784,1706701842676,-500.0,0.00022191,2]
[313059787,1706701842685,-500.0,0.00022191,2]
[313059788,1706701842695,-500.0,0.00022191,2]
[313059791,1706701842704,-500.0,0.00022191,2]
[313059793,1706701842714,-500.0,0.00022191,2]
[313059794,1706701842723,-500.0,0.00022191,2]
[313059796,1706701842733,-500.0,0.00022191,2]
[313059798,1706701842742,-2298.17,0.00022191,2]
[313059800,1706701842751,-858.43,0.00022191,2]
[313059802,1706701842760,-500.0,0.00022191,2]
[313059804,1706701842769,-500.0,0.00022191,2]
[313059806,1706701842779,-500.0,0.00022191,2]
[313059808,1706701842788,-764.13,0.00022191,2]
[313059811,1706701842799,-500.0,0.00022191,2]
[313059812,1706701842809,-151.0,0.00022191,2]
[313059814,1706701842818,-151.0,0.00022191,2]
[313059817,1706701842827,-151.0,0.00022191,2]
[313059818,1706701842837,-151.0,0.00022191,2]
[313059820,1706701842846,-151.0,0.00022191,2]
[313059823,1706701842856,-262.664478,0.00022191,2]
[313059824,1706701842865,-500.0,0.00022191,2]
[313059826,1706701842874,-500.0,0.00022191,2]
[313059828,1706701842884,-2716.59,0.00022191,2]
[313059830,1706701842893,-500.0,0.00022191,2]
[313059833,1706701842903,-500.0,0.00022191,2]
[313059843,1706701842997,-1526.33,0.00022191,2]
[313059845,1706701843006,-500.0,0.00022191,2]
[313059847,1706701843016,-500.0,0.00022191,2]
[313059849,1706701843025,-500.0,0.00022191,2]
[313059851,1706701843035,-931.05,0.00022191,2]
[313059853,1706701843046,-4527.29,0.00022191,2]
[313059856,1706701843055,-500.0,0.00022191,2]
[313059859,1706701843064,-500.0,0.00022191,2]
[313059861,1706701843073,-3710.53,0.00022191,2]
[313059864,1706701843082,-2120.86625901,0.00022191,2]
[313059887,1706701843253,-410.88374099,0.00022191,2]
[313059889,1706701843262,-500.0,0.00022191,2]
[313059893,1706701843272,-500.0,0.00022191,2]
[313059896,1706701843280,-520.34658269,0.00022191,2]
[313059899,1706701843290,-500.0,0.00022191,2]
[313059902,1706701843300,-500.0,0.00022191,2]
[313059905,1706701843311,-500.0,0.00022191,2]
[313059908,1706701843320,-719.85,0.00022191,2]
[313059911,1706701843331,-716.77,0.00022191,2]
[313059913,1706701843340,-500.0,0.00022191,2]
[313059915,1706701843349,-500.0,0.00022191,2]
[313059917,1706701843359,-500.0,0.00022191,2]
[313059919,1706701843369,-774.63,0.00022191,2]
[313059921,1706701843378,-500.0,0.00022191,2]
[313059923,1706701843387,-500.0,0.00022191,2]
[313059925,1706701843397,-2559.49882704,0.00022191,2]
[313059938,1706701843513,-624.87350951,0.00021917,2]
[313059940,1706701843523,-203.93117296,0.00022191,2]
[313059942,1706701843532,-1.61311497,0.00022191,2]
[313059945,1706701843543,-3205.31183782,0.00022191,2]
[313059947,1706701843562,-2908.18678055,0.00022191,2]
[313059948,1706701843575,-198.65826666,0.00022191,2]
[313059949,1706701843584,-500.0,0.00022191,2]
[313059950,1706701843594,-500.0,0.00022191,2]
[313059951,1706701843604,-724.36300416,0.00022191,2]
[313059952,1706701843616,-339.96699584,0.00022191,2]
[313059953,1706701843625,-500.0,0.00022191,2]
[313059954,1706701843634,-29.16092116,0.00022191,2]
[313059961,1706701843804,-470.83907884,0.00022191,2]
[313059964,1706701843813,-180.05210228,0.00022191,2]
[313059967,1706701843824,-268.24199987,0.00022191,2]
[313060194,1706701849936,154.9690062,0.00019724,3]
[313060195,1706701863999,33906.57689478,0.00020449,2]
[313060196,1706701871930,154.9690062,0.00019723,3]
[313060200,1706701891949,154.9690062,0.00019723,3]
[313060205,1706701911941,154.9690062,0.00019723,3]
[313060209,1706701929945,154.9690062,0.00019723,3]
[313060211,1706701947938,154.9690062,0.00019721,3]
[313060213,1706701967962,154.9690062,0.00019721,3]
[313060214,1706701983958,154.9690062,0.00019721,3]
[313060220,1706701999949,154.9690062,0.00019721,3]
[313060222,1706702023947,154.9690062,0.00019721,3]
[313060227,1706702037948,154.9690062,0.00019721,3]
[313060260,1706702053953,154.9690062,0.00019721,3]
[313060271,1706702071951,154.9690062,0.00019721,3]
[313060272,1706702091954,154.9690062,0.00019721,3]
[313060273,1706702109960,154.9690062,0.00019721,3]
[313060274,1706702131956,154.9690062,0.00019721,3]
[313060275,1706702151955,154.9690062,0.00019721,3]
[313060276,1706702169961,154.9690062,0.00019721,3]
[313060277,1706702191961,154.9690062,0.00019721,3]
[313060285,1706702209960,154.9690062,0.00019721,3]
[313060292,1706702225962,154.9690062,0.00019721,3]
[313060297,1706702245511,443.4555888,0.0002045,2]
[313060299,1706702247963,154.9690062,0.00019721,3]
[313060303,1706702263977,154.9690062,0.00019721,3]
[313060306,1706702283988,154.9690062,0.00019721,3]
[313060309,1706702303971,154.9690062,0.00019721,3]
[313060310,1706702327985,154.9690062,0.00019721,3]
[313060311,1706702345974,154.9690062,0.00019721,3]
[313060312,1706702369982,154.9690062,0.00019721,3]
[313060313,1706702389975,154.9690062,0.00019721,3]
[313060314,1706702410001,154.9690062,0.00019721,3]
[313060315,1706702425982,154.9690062,0.00019721,3]
[313060316,1706702443979,154.9690062,0.00019721,3]
[313060317,1706702463993,154.9690062,0.00019721,3]
[313060318,1706702485993,154.9690062,0.00019721,3]
[313060319,1706702505995,154.9690062,0.00019721,3]
[313060320,1706702521990,154.9690062,0.00019721,3]
[313060321,1706702542011,154.9690062,0.00019721,3]
[313060322,1706702557997,154.9690062,0.00019721,3]
[313060323,1706702582017,154.9690062,0.00019721,3]
[313060324,1706702598111,154.9690062,0.00019721,3]
[313060325,1706702616012,154.9690062,0.00019721,3]
[313060326,1706702634017,154.9690062,0.00019721,3]
[313060327,1706702656031,154.9690062,0.00019721,3]
[313060328,1706702674175,154.9690062,0.00019721,3]
[313060329,1706702686979,24900.0,0.00020305,2]
[313060330,1706702692019,154.9690062,0.00019721,3]
[313060331,1706702714023,154.9690062,0.00019721,3]
[313060332,1706702734045,154.9690062,0.00019721,3]
[313060333,1706702747019,151.60370444,0.0002,2]
[313060334,1706702752040,154.9690062,0.00019721,3]
[313060335,1706702772045,154.9690062,0.00019721,3]
[313060345,1706702794110,154.9690062,0.00019721,3]
[313060373,1706702814068,154.9690062,0.00019721,3]
[313060390,1706702832050,154.9690062,0.00019721,3]
[313060404,1706702850038,154.9690062,0.00019721,3]
[313060418,1706702866192,154.9690062,0.00019721,3]
[313060429,1706702888050,154.9690062,0.00019721,3]
[313060438,1706702910052,154.9690062,0.00019721,3]
[313060445,1706702928064,154.9690062,0.00019721,3]
[313060454,1706702946080,154.9690062,0.00019721,3]
[313060459,1706702968137,154.9690062,0.00019721,3]
[313060464,1706702984156,154.9690062,0.00019721,3]
[313060465,1706703004207,154.9690062,0.00019721,3]
[313060466,1706703020135,154.9690062,0.00019721,3]
[313060501,1706703036152,154.9690062,0.00019721,3]
[313060505,1706703037781,-253.03416128,0.00020581,2]
[313060509,1706703037891,-87.9847151,0.00020581,2]
[313060511,1706703037901,-154.9690062,0.00020582,2]
[313060513,1706703037915,-1017.03372915,0.00020582,2]
[313060514,1706703037924,-323.57048434,0.00020582,2]
[313060515,1706703037933,-2889.35099734,0.00020583,2]
[313060516,1706703037947,-601.62621135,0.00020583,2]
[313060517,1706703037961,-250.0,0.000206,2]
[313060518,1706703037976,-1828.98396681,0.00021,2]
[313060519,1706703037990,-8000.0,0.000219,2]
[313060520,1706703038004,-361.7,0.00021904,3]
[313060521,1706703038014,-155.84032299,0.00021912,2]
[313060522,1706703038026,-155.55930946,0.00021912,2]
[313060523,1706703038038,-156.13081128,0.00021912,2]
[313060524,1706703038051,-155.7226955,0.00021912,2]
[313060525,1706703038063,-640.83333091,0.00021912,2]
[313060526,1706703038076,-65.15234364,0.00021912,2]
[313060527,1706703038096,-156.11403775,0.00021912,2]
[313060528,1706703038108,-155.35590413,0.00021912,2]
[313060529,1706703038118,-179.10169076,0.00021912,2]
[313060530,1706703038130,-328.54653112,0.00021912,2]
[313060531,1706703038143,-166.35364662,0.00021913,2]
[313060532,1706703038155,-309.91770073,0.00021914,2]
[313060533,1706703038167,-329.79716104,0.00021914,2]
[313060534,1706703038178,-11153.26433591,0.00021914,2]
[313060545,1706703041948,-624.96,0.00021904,3]
[313060547,1706703041960,-325.52158503,0.00021914,2]
[313060548,1706703041974,-5887.01391904,0.00021914,2]
[313060549,1706703041989,-10466.75062327,0.00021914,2]
[313060567,1706703042865,-1480.08440363,0.00021914,2]
[313060573,1706703042924,-6574.66227789,0.00021914,2]
[313060636,1706703045855,-16145.47907463,0.00021914,2]
[313060908,1706703058151,154.9690062,0.00019724,3]
[313060909,1706703068785,155.33921045,0.00017749,2]